fUSD/lending_fUSD_20260627
["ID","MTS","AMOUNT","RATE_DAILY","PERIOD"]
[426513589,1782505832000,-3144.00966958,0.00025454,2]
[426513593,1782505832000,-500.0,0.000275,7]
[426513583,1782505832000,-179.27067932,0.00019975,2]
[426513594,1782505832000,-206.73,0.000276,2]
[426513602,1782505832000,-2573.28191558,0.00029366,2]
[426513605,1782505832000,-177.46315788,0.00030516,5]
[426513603,1782505832000,-2017.70470318,0.00029366,2]
[426513601,1782505832000,-382.4132988,0.00029366,2]
[426513600,1782505832000,-2299.39571638,0.00029366,2]
[426513596,1782505832000,-820.24611824,0.00029366,2]
[426513599,1782505832000,-836.38742294,0.00029366,2]
[426513595,1782505832000,-456.0544599,0.00029366,2]
[426513604,1782505832000,-126.26387164,0.00029366,2]
[426513598,1782505832000,-496.77874622,0.00029366,2]
[426513597,1782505832000,-1081.52417762,0.00029366,2]
[426513616,1782505840000,-360.43361694,0.00030516,5]
[426513615,1782505840000,-511.25388306,0.00030516,5]
[426513614,1782505840000,-156.74611694,0.00030516,5]
[426513613,1782505840000,-498.53684212,0.00030516,5]
[426513629,1782505841000,-481.99435502,0.00030516,5]
[426513636,1782505841000,-676.0,0.00030516,5]
[426513634,1782505841000,-683.0,0.00030516,5]
[426513633,1782505841000,-665.90435502,0.00030516,5]
[426513631,1782505841000,-666.0,0.00030516,5]
[426513632,1782505841000,-19.09564498,0.00030516,5]
[426513627,1782505841000,-665.0,0.00030516,5]
[426513630,1782505841000,-677.0,0.00030516,5]
[426513628,1782505841000,-188.00564498,0.00030516,5]
[426513619,1782505841000,-10.73064498,0.00030516,5]
[426513625,1782505841000,-668.0,0.00030516,5]
[426513620,1782505841000,-669.26935502,0.00030516,5]
[426513621,1782505841000,-672.0,0.00030516,5]
[426513638,1782505841000,-679.0,0.00030516,5]
[426513622,1782505841000,-667.0,0.00030516,5]
[426513623,1782505841000,-357.00564498,0.00030516,5]
[426513624,1782505841000,-313.99435502,0.00030516,5]
[426513618,1782505841000,-666.0,0.00030516,5]
[426513617,1782505841000,-327.56638306,0.00030516,5]
[426513626,1782505841000,-676.0,0.00030516,5]
[426513637,1782505841000,-676.0,0.00030516,5]
[426513635,1782505841000,-663.0,0.00030516,5]
[426513639,1782505841000,-670.0,0.00030516,5]
[426513661,1782505841000,-457.429801,0.00031,7]
[426513660,1782505841000,-1161.23429922,0.00031,3]
[426513658,1782505841000,-251.0,0.00030993,5]
[426513659,1782505841000,-150.0,0.00030998,5]
[426513653,1782505841000,-629.699865,0.00030989,5]
[426513650,1782505841000,-19.86275163,0.00030913,20]
[426513640,1782505841000,-663.0,0.00030516,5]
[426513656,1782505841000,-307.26239188,0.0003099,5]
[426513654,1782505841000,-56.300135,0.00030989,5]
[426513657,1782505841000,-673.0,0.00030993,5]
[426513652,1782505841000,-151.0,0.00030988,5]
[426513655,1782505841000,-370.73760812,0.0003099,5]
[426513651,1782505841000,-668.0,0.00030987,5]
[426513644,1782505841000,-582.174,0.00030517,26]
[426513645,1782505841000,-677.0,0.00030519,5]
[426513643,1782505841000,-16.53563604,0.00030517,5]
[426513642,1782505841000,-649.46436396,0.00030517,5]
[426513641,1782505841000,-672.0,0.00030516,5]
[426513648,1782505841000,-252.70470157,0.00030869,2]
[426513646,1782505841000,-685.0,0.00030532,5]
[426513647,1782505841000,-664.0,0.00030605,5]
[426513649,1782505841000,-2000.0,0.00030912,20]
[426513662,1782505842000,-682.24,0.00030516,5]
[426513683,1782505843000,-362.52972423,0.00031356,28]
[426513685,1782505843000,-639.54540557,0.00031356,28]
[426513681,1782505843000,-682.0,0.00031189,5]
[426513680,1782505843000,-542.570199,0.00031,7]
[426513679,1782505843000,-4.76,0.00030516,5]
[426513688,1782505843000,-1294.4745,0.00031356,28]
[426513689,1782505843000,-741.11,0.00031632,30]
[426513687,1782505843000,-956.72167803,0.00031356,28]
[426513697,1782505843000,-1690.13509558,0.00032339,2]
[426513690,1782505843000,-179.27067932,0.000318,2]
[426513698,1782505843000,-2737.24,0.00032339,2]
[426513692,1782505843000,-670.0,0.00031963,5]
[426513696,1782505843000,-711.26,0.00032322,2]
[426513702,1782505843000,-8637.52514478,0.00032603,2]
[426513700,1782505843000,-4210.48920596,0.00032426,2]
[426513699,1782505843000,-1441.62490442,0.00032339,2]
[426513701,1782505843000,-1871.65079404,0.00032426,2]
[426513694,1782505843000,-358.95,0.0003223,120]
[426513695,1782505843000,-5000.0,0.00032249,2]
[426513691,1782505843000,-1524.90389795,0.000319,7]
[426513693,1782505843000,-1123.51,0.00032217,2]
[426513709,1782505846000,-850.6,0.00032957,2]
[426513710,1782505846000,-1316.48492212,0.00033015,14]
[426513707,1782505846000,-344.53,0.0003263,2]
[426513706,1782505846000,-456.89485522,0.00032603,2]
[426513708,1782505846000,-267.72,0.00032711,2]
[426513705,1782505846000,-1084.3,0.00032603,2]
[426513712,1782505847000,-175.46,0.00033203,120]
[426513715,1782505847000,-2595.91075729,0.00033257,10]
[426513714,1782505847000,-4996.43,0.00033247,10]
[426513713,1782505847000,-664.0,0.00033216,5]
[426513711,1782505847000,-3001.60507788,0.00033015,14]
[426513722,1782506102000,500.0,0.00037215,120]
[426513723,1782506103000,500.0,0.00037215,120]
[426513724,1782506103000,500.0,0.00037215,120]
[426513725,1782506104000,500.0,0.00037215,120]
[426513727,1782506104000,500.0,0.00037215,120]
[426513726,1782506104000,500.0,0.00037215,120]
[426513728,1782506105000,500.0,0.00037215,120]
[426513729,1782506105000,500.0,0.00037215,120]
[426513730,1782506105000,500.0,0.00037215,120]
[426513731,1782506105000,500.0,0.00037215,120]
[426513732,1782506106000,301.20321872,0.00037215,120]
[426513735,1782506218000,2001.99,0.00037215,120]
[426513734,1782506218000,2001.99,0.00037215,120]
[426513739,1782506219000,2001.99,0.00037215,120]
[426513738,1782506219000,2001.99,0.00037215,120]
[426513737,1782506219000,2001.99,0.00037215,120]
[426513736,1782506219000,2001.99,0.00037215,120]
[426513740,1782506220000,2001.99,0.00037215,120]
[426513741,1782506220000,2001.99,0.00037215,120]
[426513742,1782506220000,2001.99,0.00037215,120]
[426513745,1782506221000,2001.99,0.00037215,120]
[426513744,1782506221000,2001.99,0.00037215,120]
[426513743,1782506221000,2001.99,0.00037215,120]
[426513749,1782506222000,2001.99,0.00037215,120]
[426513748,1782506222000,2001.99,0.00037215,120]
[426513747,1782506222000,2001.99,0.00037215,120]
[426513746,1782506222000,2001.99,0.00037215,120]
[426513750,1782506223000,2001.99,0.00037215,120]
[426513752,1782506223000,2001.99,0.00037215,120]
[426513751,1782506223000,2001.99,0.00037215,120]
[426513753,1782506224000,2001.99,0.00037215,120]
[426513754,1782506224000,2001.99,0.00037215,120]
[426513757,1782506225000,2002.01765746,0.00037215,120]
[426513756,1782506225000,2001.99,0.00037215,120]
[426513755,1782506225000,2001.99,0.00037215,120]
[426513760,1782506327000,2235.39,0.00030312,120]
[426513761,1782506549000,441.38,0.00029999,120]
[426513762,1782506762000,1000.0,0.00037219,120]
[426513763,1782506763000,189.58,0.00029697,120]
[426513764,1782506830000,360.0,0.00037221,120]
[426513766,1782506872000,18500.0497,0.00030947,120]
[426513765,1782506872000,545.0,0.00037221,120]
[426513767,1782506883000,250.0,0.00037221,120]
[426513768,1782506942000,500.0,0.00037221,120]
[426513770,1782506969000,152.00000003,0.00029009,120]
[426513799,1782507032000,-10650.3,0.00029009,7]
[426513793,1782507032000,-206.3,0.00029,7]
[426513803,1782507032000,-2454.08,0.0002972,2]
[426513801,1782507032000,-153.99,0.00029484,2]
[426513804,1782507032000,-1000.0,0.00029722,2]
[426513791,1782507032000,-24316.9,0.00027397,2]
[426513794,1782507032000,-160.0,0.00029,2]
[426513802,1782507032000,-1629.8,0.00029643,2]
[426513800,1782507032000,-1372.62,0.00029304,2]
[426513792,1782507032000,-500.0,0.000275,7]
[426513795,1782507032000,-151.0,0.00029006,7]
[426513789,1782507032000,-2973.29,0.00025786,20]
[426513779,1782507032000,-163.98,0.000176,2]
[426513790,1782507032000,-164.55,0.00026422,2]
[426513787,1782507032000,-200.265698,0.00024928,7]
[426513781,1782507032000,-1036.03,0.00021273,2]
[426513783,1782507032000,-1090.757612,0.00024053,2]
[426513782,1782507032000,-273.62,0.00021273,2]
[426513796,1782507032000,-1319.0,0.00029008,2]
[426513780,1782507032000,-182.75671687,0.00019151,2]
[426513778,1782507032000,-297.54502051,0.00017551,2]
[426513775,1782507032000,-150.0,0.00014151,2]
[426513774,1782507032000,-801.102793,0.00013976,2]
[426513777,1782507032000,-244.41582093,0.00017451,2]
[426513776,1782507032000,-312.62,0.00014675,2]
[426513788,1782507032000,-1882.21,0.00025786,2]
[426513798,1782507032000,-273.62,0.00029009,7]
[426513785,1782507032000,-10650.3,0.00024174,2]
[426513806,1782507032000,-276.5,0.00029872,30]
[426513797,1782507032000,-1036.03,0.00029009,7]
[426513829,1782507032000,-500.0,0.00031202,2]
[426513833,1782507032000,-3155.6,0.0003168,10]
[426513828,1782507032000,-166.65,0.00031202,2]
[426513831,1782507032000,-216.42324807,0.00031328,2]
[426513830,1782507032000,-686.0,0.0003132,5]
[426513827,1782507032000,-667.0,0.00031047,5]
[426513832,1782507032000,-457.0,0.00031648,20]
[426513823,1782507032000,-687.0,0.00030725,5]
[426513826,1782507032000,-1000.0,0.00031,7]
[426513825,1782507032000,-685.0,0.00030881,5]
[426513824,1782507032000,-668.0,0.00030784,5]
[426513822,1782507032000,-668.0,0.0003069,5]
[426513834,1782507032000,-3752.45,0.0003168,10]
[426513819,1782507032000,-465.739,0.0003052,26]
[426513821,1782507032000,-682.0,0.00030669,5]
[426513808,1782507032000,-292.52337687,0.00029931,3]
[426513811,1782507032000,-151.0,0.00030116,7]
[426513820,1782507032000,-457.0,0.00030638,20]
[426513810,1782507032000,-208.15461719,0.000301,14]
[426513818,1782507032000,-200.0,0.00030436,2]
[426513813,1782507032000,-3079.96,0.00030119,2]
[426513815,1782507032000,-6471.47,0.00030239,2]
[426513816,1782507032000,-443.23,0.00030239,2]
[426513814,1782507032000,-200.0,0.0003013,2]
[426513817,1782507032000,-170.13,0.00030347,2]
[426513812,1782507032000,-5000.0,0.00030119,2]
[426513871,1782507033000,-500.0,0.000317,2]
[426513874,1782507033000,-500.0,0.000317,2]
[426513872,1782507033000,-500.0,0.000317,2]
[426513870,1782507033000,-500.0,0.000317,2]
[426513867,1782507033000,-500.0,0.000317,2]
[426513866,1782507033000,-500.0,0.000317,2]
[426513865,1782507033000,-500.0,0.000317,2]
[426513864,1782507033000,-500.0,0.000317,2]
[426513868,1782507033000,-151.0,0.000317,7]
[426513869,1782507033000,-500.0,0.000317,2]
[426513875,1782507033000,-500.0,0.000317,2]
[426513879,1782507033000,-615.951333,0.000317,2]
[426513876,1782507033000,-500.0,0.000317,2]
[426513877,1782507033000,-500.0,0.000317,2]
[426513878,1782507033000,-500.0,0.000317,2]
[426513880,1782507033000,-151.0,0.000317,7]
[426513881,1782507033000,-151.0,0.000317,7]
[426513884,1782507033000,-179.05,0.000317,7]
[426513883,1782507033000,-179.05,0.000317,7]
[426513886,1782507033000,-169.0,0.000317,3]
[426513882,1782507033000,-179.05,0.000317,7]
[426513887,1782507033000,-169.0,0.000317,3]
[426513888,1782507033000,-169.0,0.000317,3]
[426513861,1782507033000,-500.0,0.000317,2]
[426513873,1782507033000,-500.0,0.000317,2]
[426513862,1782507033000,-151.0,0.000317,7]
[426513856,1782507033000,-500.0,0.000317,2]
[426513885,1782507033000,-179.05,0.000317,7]
[426513835,1782507033000,-5403.54,0.0003169,10]
[426513836,1782507033000,-4502.95,0.0003169,10]
[426513839,1782507033000,-500.0,0.000317,2]
[426513838,1782507033000,-500.0,0.000317,2]
[426513845,1782507033000,-500.0,0.000317,2]
[426513842,1782507033000,-500.0,0.000317,2]
[426513837,1782507033000,-500.0,0.000317,2]
[426513841,1782507033000,-500.0,0.000317,2]
[426513840,1782507033000,-500.0,0.000317,2]
[426513844,1782507033000,-500.0,0.000317,2]
[426513843,1782507033000,-500.0,0.000317,2]
[426513846,1782507033000,-500.0,0.000317,2]
[426513849,1782507033000,-500.0,0.000317,2]
[426513847,1782507033000,-500.0,0.000317,2]
[426513848,1782507033000,-500.0,0.000317,2]
[426513850,1782507033000,-500.0,0.000317,2]
[426513857,1782507033000,-500.0,0.000317,2]
[426513851,1782507033000,-500.0,0.000317,2]
[426513854,1782507033000,-500.0,0.000317,2]
[426513852,1782507033000,-500.0,0.000317,2]
[426513853,1782507033000,-500.0,0.000317,2]
[426513855,1782507033000,-500.0,0.000317,2]
[426513858,1782507033000,-500.0,0.000317,2]
[426513860,1782507033000,-500.0,0.000317,2]
[426513859,1782507033000,-500.0,0.000317,2]
[426513863,1782507033000,-500.0,0.000317,2]
[426513889,1782507033000,-169.0,0.000317,3]
[426513918,1782507033000,-179.05,0.00031799,7]
[426513893,1782507033000,-151.0,0.00031797,7]
[426513919,1782507033000,-179.05,0.00031799,7]
[426513931,1782507033000,-151.0,0.000318,7]
[426513927,1782507033000,-1228.24,0.00031799,7]
[426513928,1782507033000,-500.0,0.00031799,7]
[426513925,1782507033000,-179.05,0.00031799,7]
[426513923,1782507033000,-179.05,0.00031799,7]
[426513932,1782507033000,-155.479638,0.000318,7]
[426513933,1782507033000,-151.0,0.000318,7]
[426513929,1782507033000,-169.87,0.000318,30]
[426513934,1782507033000,-224.625137,0.000318,7]
[426513924,1782507033000,-179.05,0.00031799,7]
[426513916,1782507033000,-151.0,0.00031799,7]
[426513930,1782507033000,-173.54278,0.000318,7]
[426513941,1782507033000,-3441.21718378,0.00032091,2]
[426513943,1782507033000,-7048.07178436,0.00032191,2]
[426513942,1782507033000,-6025.4510458,0.00032191,2]
[426513936,1782507033000,-151.0,0.000318,7]
[426513945,1782507033000,-7411.7159935,0.00032191,2]
[426513944,1782507033000,-2363.98817854,0.00032191,2]
[426513938,1782507033000,-9999.9999,0.00032,30]
[426513939,1782507033000,-533.52803296,0.00032,60]
[426513937,1782507033000,-500.0,0.00031999,2]
[426513940,1782507033000,-160.0,0.00032,30]
[426513890,1782507033000,-151.0,0.000317,7]
[426513935,1782507033000,-151.0,0.000318,7]
[426513920,1782507033000,-179.05,0.00031799,7]
[426513926,1782507033000,-500.0,0.00031799,120]
[426513922,1782507033000,-179.05,0.00031799,7]
[426513917,1782507033000,-258.529254,0.00031799,7]
[426513894,1782507033000,-151.0,0.00031797,7]
[426513895,1782507033000,-63154.3370464,0.00031797,2]
[426513897,1782507033000,-151.0,0.00031797,7]
[426513900,1782507033000,-169.0,0.00031798,3]
[426513898,1782507033000,-151.0,0.00031797,7]
[426513891,1782507033000,-293.73,0.0003179,3]
[426513899,1782507033000,-500.0,0.00031798,2]
[426513902,1782507033000,-500.0,0.00031799,120]
[426513901,1782507033000,-169.0,0.00031798,3]
[426513905,1782507033000,-151.0,0.00031799,7]
[426513904,1782507033000,-151.0,0.00031799,7]
[426513896,1782507033000,-151.0,0.00031797,7]
[426513906,1782507033000,-151.0,0.00031799,7]
[426513903,1782507033000,-500.0,0.00031799,10]
[426513921,1782507033000,-179.05,0.00031799,7]
[426513913,1782507033000,-245.544302,0.00031799,7]
[426513892,1782507033000,-881.19,0.0003179,3]
[426513912,1782507033000,-151.0,0.00031799,7]
[426513915,1782507033000,-500.0,0.00031799,120]
[426513911,1782507033000,-500.0,0.00031799,120]
[426513909,1782507033000,-500.0,0.00031799,120]
[426513907,1782507033000,-500.0,0.00031799,120]
[426513910,1782507033000,-500.0,0.00031799,7]
[426513908,1782507033000,-500.0,0.00031799,120]
[426513914,1782507033000,-501.62260177,0.00031799,120]
[426513968,1782507034000,-3441.21718377,0.00033526,2]
[426513980,1782507034000,-457.0,0.00034678,20]
[426513971,1782507034000,-441.38,0.00033749,120]
[426513973,1782507034000,-502.0,0.00034219,2]
[426513983,1782507034000,-350.0,0.00034757,2]
[426513972,1782507034000,-185.26,0.00033928,2]
[426513974,1782507034000,-3441.21718377,0.00034244,2]
[426513975,1782507034000,-350.0,0.00034303,2]
[426513977,1782507034000,-174.11021238,0.00034391,8]
[426513984,1782507034000,-286.9586955,0.00034818,2]
[426513982,1782507034000,-151.0,0.00034749,2]
[426513978,1782507034000,-1500.0,0.000344,7]
[426513979,1782507034000,-34481.17430126,0.00034644,2]
[426513976,1782507034000,-350.01,0.00034307,36]
[426513987,1782507034000,-594.89352566,0.000349,120]
[426513986,1782507034000,-502.0,0.00034838,2]
[426513990,1782507034000,-2300.0,0.000349,12]
[426513966,1782507034000,-250.0,0.00033494,5]
[426513981,1782507034000,-151.0,0.00034749,2]
[426513969,1782507034000,-8978.0,0.0003363,5]
[426513952,1782507034000,-151.0,0.00032289,7]
[426513970,1782507034000,-457.0,0.00033668,20]
[426513946,1782507034000,-764.8265977,0.00032191,2]
[426513948,1782507034000,-179.05,0.00032191,7]
[426513959,1782507034000,-457.0,0.00032658,20]
[426513958,1782507034000,-153.99,0.00032432,2]
[426513947,1782507034000,-151.0,0.00032191,7]
[426513949,1782507034000,-179.05,0.00032191,7]
[426513950,1782507034000,-179.05,0.00032191,7]
[426513988,1782507034000,-384.54193532,0.000349,120]
[426513953,1782507034000,-179.05,0.00032289,7]
[426513951,1782507034000,-179.05,0.00032191,7]
[426513955,1782507034000,-179.05,0.00032289,7]
[426513956,1782507034000,-179.05,0.00032289,7]
[426513957,1782507034000,-167.92210443,0.00032339,2]
[426513954,1782507034000,-179.05,0.00032289,7]
[426513960,1782507034000,-3441.21718377,0.00032809,2]
[426513967,1782507034000,-1635.0,0.00033498,10]
[426513964,1782507034000,-700.0,0.00033386,2]
[426513963,1782507034000,-587.46,0.0003316,3]
[426513961,1782507034000,-177.22907949,0.00032903,2]
[426513965,1782507034000,-688.0,0.00033493,5]
[426513993,1782507034000,-500.0,0.00034999,7]
[426513962,1782507034000,-10000.0,0.00033,30]
[426513989,1782507034000,-161.07424051,0.000349,120]
[426514013,1782507034000,-1007.70133905,0.00035233,2]
[426514009,1782507034000,-430.55123915,0.000352,30]
[426514016,1782507034000,-176.24058146,0.0003524,30]
[426514018,1782507034000,-282.80129458,0.0003524,30]
[426514019,1782507034000,-282.80129457,0.0003524,30]
[426514031,1782507034000,-1254.41808677,0.00035355,2]
[426514021,1782507034000,-230.69,0.00035349,2]
[426514020,1782507034000,-282.80129457,0.0003524,30]
[426514025,1782507034000,-620.31,0.0003535,30]
[426514022,1782507034000,-230.95,0.00035349,2]
[426514023,1782507034000,-794.26,0.0003535,30]
[426514024,1782507034000,-566.13,0.0003535,30]
[426514028,1782507034000,-627.81,0.0003535,30]
[426514026,1782507034000,-789.6,0.0003535,30]
[426514027,1782507034000,-572.38,0.0003535,30]
[426514030,1782507034000,-18770.46564924,0.00035355,2]
[426514032,1782507034000,-151.0,0.00031798,7]
[426514033,1782507034000,-410.45385259,0.00035355,2]
[426513985,1782507034000,-2453.0,0.00034837,10]
[426514011,1782507034000,-1235.19,0.00035215,10]
[426514017,1782507034000,-176.24058146,0.0003524,30]
[426514029,1782507034000,-6146.87612083,0.00035355,2]
[426514008,1782507034000,-430.55123917,0.000352,30]
[426513991,1782507034000,-400.0,0.000349,12]
[426513996,1782507034000,-500.0,0.00034999,120]
[426513994,1782507034000,-500.0,0.00034999,120]
[426513995,1782507034000,-500.0,0.00034999,120]
[426513998,1782507034000,-2500.0,0.00035,30]
[426514001,1782507034000,-1500.0,0.00035,2]
[426514004,1782507034000,-1000.0,0.00035,120]
[426513999,1782507034000,-1500.0,0.00035,2]
[426514002,1782507034000,-1500.0,0.00035,2]
[426513997,1782507034000,-6860.30393936,0.00035,2]
[426514005,1782507034000,-22681.80376359,0.00035,2]
[426514000,1782507034000,-1500.0,0.00035,2]
[426514014,1782507034000,-5378.39727441,0.00035233,2]
[426514015,1782507034000,-29102.77702685,0.00035233,2]
[426514010,1782507034000,-430.55123915,0.000352,30]
[426514012,1782507034000,-494.09,0.00035216,2]
[426514006,1782507034000,-265.31,0.0003503,30]
[426514003,1782507034000,-10000.0,0.00035,30]
[426514007,1782507034000,-630.93,0.00035161,120]
[426513992,1782507034000,-3441.21718377,0.00034962,2]
[426514036,1782507038000,-346.12,0.00014675,2]
[426514039,1782507038000,-500.0,0.00031796,2]
[426514041,1782507038000,-419.07870563,0.00031796,2]
[426514042,1782507038000,-500.0,0.00031796,2]
[426514040,1782507038000,-500.0,0.00031796,2]
[426514043,1782507038000,-101.12573903,0.00031796,2]
[426514038,1782507038000,-151.0,0.000317,7]
[426514037,1782507038000,-3127.05,0.0003168,10]
[426514049,1782507040000,-278.54103374,0.00031796,2]
[426514050,1782507040000,-500.0,0.00031796,2]
[426514051,1782507040000,-307.82896626,0.00031796,2]
[426514116,1782507041000,-150.0,0.000354,10]
[426514075,1782507041000,-500.0,0.00031796,2]
[426514079,1782507041000,-500.0,0.00031796,2]
[426514080,1782507041000,-500.0,0.00031796,2]
[426514089,1782507041000,-500.0,0.00031796,2]
[426514100,1782507041000,-796.6,0.0003535,30]
[426514102,1782507041000,-571.34,0.0003535,30]
[426514088,1782507041000,-500.0,0.00031796,2]
[426514106,1782507041000,-6744.24439057,0.00035355,2]
[426514104,1782507041000,-626.56,0.00035351,30]
[426514091,1782507041000,-500.0,0.00031796,2]
[426514094,1782507041000,-500.0,0.00031796,2]
[426514095,1782507041000,-167.243558,0.00031797,7]
[426514096,1782507041000,-151.0,0.00032191,7]
[426514090,1782507041000,-500.0,0.00031796,2]
[426514093,1782507041000,-500.0,0.00031796,2]
[426514098,1782507041000,-151.0,0.00032289,7]
[426514108,1782507041000,-174.11021237,0.00035355,8]
[426514109,1782507041000,-158.0086147,0.00035355,9]
[426514113,1782507041000,-378.61,0.00035374,2]
[426514110,1782507041000,-170.0,0.00035358,7]
[426514111,1782507041000,-170.0,0.00035358,7]
[426514114,1782507041000,-153.99,0.00035381,2]
[426514107,1782507041000,-2000.0,0.00035355,2]
[426514081,1782507041000,-500.0,0.00031796,2]
[426514112,1782507041000,-281.2355042,0.00035361,120]
[426514115,1782507041000,-230.95,0.00035388,7]
[426514092,1782507041000,-500.0,0.00031796,2]
[426514085,1782507041000,-500.0,0.00031796,2]
[426514053,1782507041000,-500.0,0.00031796,2]
[426514086,1782507041000,-500.0,0.00031796,2]
[426514119,1782507041000,-300.0,0.00035454,10]
[426514052,1782507041000,-192.17103374,0.00031796,2]
[426514058,1782507041000,-500.0,0.00031796,2]
[426514054,1782507041000,-500.0,0.00031796,2]
[426514055,1782507041000,-500.0,0.00031796,2]
[426514056,1782507041000,-500.0,0.00031796,2]
[426514057,1782507041000,-500.0,0.00031796,2]
[426514070,1782507041000,-500.0,0.00031796,2]
[426514072,1782507041000,-500.0,0.00031796,2]
[426514060,1782507041000,-500.0,0.00031796,2]
[426514059,1782507041000,-500.0,0.00031796,2]
[426514062,1782507041000,-500.0,0.00031796,2]
[426514073,1782507041000,-392.9629689,0.00031796,2]
[426514087,1782507041000,-500.0,0.00031796,2]
[426514061,1782507041000,-500.0,0.00031796,2]
[426514063,1782507041000,-500.0,0.00031796,2]
[426514067,1782507041000,-500.0,0.00031796,2]
[426514064,1782507041000,-500.0,0.00031796,2]
[426514065,1782507041000,-500.0,0.00031796,2]
[426514066,1782507041000,-500.0,0.00031796,2]
[426514069,1782507041000,-500.0,0.00031796,2]
[426514068,1782507041000,-500.0,0.00031796,2]
[426514074,1782507041000,-500.0,0.00031796,2]
[426514077,1782507041000,-500.0,0.00031796,2]
[426514076,1782507041000,-500.0,0.00031796,2]
[426514078,1782507041000,-500.0,0.00031796,2]
[426514082,1782507041000,-500.0,0.00031796,2]
[426514083,1782507041000,-500.0,0.00031796,2]
[426514071,1782507041000,-500.0,0.00031796,2]
[426514117,1782507041000,-350.0,0.00035404,2]
[426514084,1782507041000,-500.0,0.00031796,2]
[426514121,1782507041000,-500.0,0.00035454,2]
[426514158,1782507041000,-627.81,0.00035557,7]
[426514149,1782507041000,-1228.24,0.00035458,7]
[426514150,1782507041000,-500.0,0.00035458,7]
[426514148,1782507041000,-500.0,0.00035458,120]
[426514157,1782507041000,-572.38,0.00035557,7]
[426514154,1782507041000,-230.95,0.00035547,30]
[426514155,1782507041000,-150.0,0.0003555,7]
[426514156,1782507041000,-789.6,0.00035557,7]
[426514152,1782507041000,-230.95,0.00035468,2]
[426514153,1782507041000,-230.95,0.00035507,7]
[426514164,1782507041000,-350.0,0.00035604,2]
[426514167,1782507041000,-500.0,0.00035616,7]
[426514171,1782507041000,-500.0,0.00035616,7]
[426514160,1782507041000,-571.34,0.00035557,7]
[426514165,1782507041000,-352.55752475,0.00035616,60]
[426514172,1782507041000,-500.0,0.00035616,7]
[426514166,1782507041000,-3785.14028412,0.00035616,120]
[426514174,1782507041000,-500.0,0.00035616,7]
[426514173,1782507041000,-500.0,0.00035616,7]
[426514168,1782507041000,-500.0,0.00035616,7]
[426514169,1782507041000,-500.0,0.00035616,7]
[426514163,1782507041000,-350.0,0.00035589,2]
[426514170,1782507041000,-500.0,0.00035616,7]
[426514175,1782507041000,-500.0,0.00035616,7]
[426514177,1782507041000,-500.0,0.00035616,7]
[426514178,1782507041000,-500.0,0.00035616,7]
[426514118,1782507041000,-230.95,0.00035428,30]
[426514180,1782507041000,-500.0,0.00035616,7]
[426514162,1782507041000,-230.95,0.00035587,2]